bitfinex-derivatives/quotes_BTCF0:USTF0_20240830
["timestamp","ask_amount","ask_price","bid_price","bid_amount"]
[1725058267944,1.96157762,59304.0,59303.0,0.002]
[1725058268152,2.00707762,59304.0,59303.0,0.002]
[1725058269957,1.27726262,59304.0,59303.0,0.002]
[1725058270160,0.66138262,59304.0,59303.0,0.002]
[1725058274154,0.82138262,59304.0,59303.0,0.002]
[1725058274367,1.42726262,59304.0,59303.0,0.002]
[1725058277059,0.92138262,59304.0,59303.0,0.002]
[1725058281163,0.084318,59302.0,59301.0,0.052489]
[1725058281465,0.324318,59302.0,59301.0,0.052489]
[1725058281967,0.75607062,59302.0,59301.0,0.052489]
[1725058282165,0.324318,59302.0,59301.0,0.052489]
[1725058282862,0.75607062,59302.0,59301.0,0.052489]
[1725058283059,0.324318,59302.0,59301.0,0.052489]
[1725058283759,0.76207062,59302.0,59301.0,0.053489]
[1725058284061,0.330318,59302.0,59301.0,0.053489]
[1725058284767,0.76207062,59302.0,59301.0,0.053489]
[1725058284965,0.246,59302.0,59301.0,0.053489]
[1725058285770,0.67775262,59302.0,59301.0,0.414289]
[1725058286068,0.246,59302.0,59301.0,0.414289]
[1725058286366,0.246,59302.0,59301.0,0.498608]
[1725058287061,0.246,59302.0,59301.0,0.137808]
[1725058287265,0.246,59302.0,59301.0,0.498608]
[1725058287661,0.246,59302.0,59301.0,0.414289]
[1725058288059,0.246,59302.0,59301.0,0.498608]
[1725058289665,0.246,59302.0,59301.0,0.582927]
[1725058290066,0.246,59302.0,59301.0,0.498608]
[1725058291565,0.006,59302.0,59301.0,0.498608]
[1725058292072,0.006,59302.0,59301.0,0.582927]
[1725058297262,0.006,59302.0,59301.0,0.943727]
[1725058300383,0.006,59302.0,59301.0,0.993527]
[1725058301869,0.006,59302.0,59301.0,0.271927]
[1725058302064,0.006,59302.0,59301.0,0.993527]
[1725058302669,0.37435175,59316.0,59306.0,0.084312]
[1725058302975,0.084303,59313.0,59312.0,0.445101]
[1725058303268,0.204303,59313.0,59312.0,0.445101]
[1725058304873,0.214303,59313.0,59312.0,0.446101]
[1725058305471,0.222303,59313.0,59312.0,0.447101]
[1725058309572,0.332303,59313.0,59312.0,0.447101]
[1725058310166,0.084325,59298.0,59296.0,0.30105303]
[1725058310368,0.174325,59297.0,59296.0,0.30105303]
[1725058310571,0.502025,59297.0,59296.0,0.27105303]
[1725058310980,0.86568631,59297.0,59296.0,0.27105303]
[1725058311483,0.86568631,59297.0,59291.0,0.00025303]
[1725058311484,0.78136131,59297.0,59291.0,0.00025303]
[1725058311778,0.09,59294.0,59291.0,0.00025303]
[1725058311968,0.2,59294.0,59291.0,0.00025303]
[1725058312168,0.34366131,59293.0,59291.0,0.00025303]
[1725058312368,0.45366131,59293.0,59291.0,0.00025303]
[1725058312867,0.084332,59292.0,59291.0,0.00025303]
[1725058313071,0.214332,59292.0,59291.0,0.00025303]
[1725058313668,0.214332,59292.0,59291.0,0.01225303]
[1725058314875,0.13,59292.0,59291.0,0.01225303]
[1725058315388,0.13,59292.0,59291.0,0.09658703]
[1725058315770,0.214332,59292.0,59291.0,0.09658703]
[1725058320383,0.214332,59292.0,59291.0,0.01225303]
[1725058323183,0.662996,59292.0,59291.0,0.01225303]
[1725058323783,1.00665731,59292.0,59291.0,0.01225303]
[1725058326591,1.51261731,59292.0,59291.0,0.01225303]
[1725058326780,1.00665731,59292.0,59291.0,0.01225303]
[1725058326977,0.76232531,59292.0,59291.0,0.01225303]
[1725058329087,0.67799331,59292.0,59291.0,0.09658703]
[1725058333088,0.76232531,59292.0,59291.0,0.01225303]
[1725058334307,0.85232531,59292.0,59291.0,0.01225303]
[1725058345091,0.93665731,59292.0,59291.0,0.01225303]
[1725058346405,1.29745731,59292.0,59291.0,0.01225303]
[1725058347003,1.29745731,59292.0,59291.0,0.00225303]
[1725058348000,0.39876131,59292.0,59291.0,1.64334703]
[1725058348192,0.00874045,59300.0,59291.0,1.55901303]
[1725058348399,0.12025186,59300.0,59299.0,0.3608]
[1725058348604,0.12025186,59300.0,59299.0,0.445122]
[1725058348791,0.12025186,59300.0,59299.0,0.951042]
[1725058350305,0.12025186,59300.0,59299.0,0.953042]
[1725058350806,0.12025186,59300.0,59299.0,0.448122]
[1725058351197,0.12025186,59300.0,59299.0,0.447122]
[1725058352203,0.12025186,59300.0,59299.0,0.445122]
[1725058354003,0.12025186,59300.0,59292.0,0.0921]
[1725058354205,0.16,59297.0,59296.0,0.084326]
[1725058354414,0.29,59297.0,59296.0,0.084326]
[1725058354596,0.13,59297.0,59296.0,0.084326]
[1725058355505,0.13,59297.0,59296.0,0.086326]
[1725058356208,0.13,59297.0,59296.0,0.088326]
[1725058357008,0.13,59297.0,59296.0,0.085326]
[1725058358704,0.131,59297.0,59296.0,0.084326]
[1725058359812,0.131,59297.0,59292.0,0.2061]
[1725058359813,0.22838081,59298.0,59297.0,0.084325]
[1725058360012,0.08026586,59301.0,59300.0,0.084321]
[1725058360310,0.31026586,59301.0,59300.0,0.084321]
[1725058361600,0.34052846,59301.0,59300.0,0.084321]
[1725058362609,0.34152846,59301.0,59300.0,0.084321]
[1725058365313,0.31126586,59301.0,59300.0,0.084321]
[1725058365502,0.31026586,59301.0,59300.0,0.084321]
[1725058365700,0.31126586,59301.0,59300.0,0.084321]
[1725058365907,0.231,59301.0,59300.0,0.445121]
[1725058368226,0.231,59301.0,59300.0,0.084321]
[1725058368526,0.23,59301.0,59300.0,0.084321]
[1725058369319,0.231,59301.0,59300.0,0.084321]
[1725058369718,0.315319,59301.0,59300.0,0.084321]
[1725058372219,0.405319,59301.0,59300.0,0.084321]
[1725058372814,0.231,59301.0,59300.0,0.529442]
[1725058375023,0.23,59301.0,59300.0,0.529442]
[1725058375420,0.23,59301.0,59300.0,0.533442]
[1725058376428,0.23,59301.0,59300.0,0.536442]
[1725058376824,0.23,59301.0,59300.0,0.452121]
[1725058377128,0.23,59301.0,59300.0,0.448121]
[1725058377327,0.23,59301.0,59300.0,0.451121]
[1725058377917,0.23,59301.0,59300.0,0.446121]
[1725058378121,0.23,59301.0,59300.0,0.448121]
[1725058390326,0.314319,59301.0,59300.0,0.3638]
[1725058390528,0.398638,59301.0,59300.0,0.003]
[1725058391938,0.084329,59294.0,59293.0,0.07733]
[1725058392140,0.284329,59294.0,59293.0,0.07733]
[1725058393044,0.284329,59294.0,59286.0,0.00173303]
[1725058393045,0.084331,59293.0,59286.0,0.00173303]
[1725058393340,0.084339,59287.0,59286.0,0.00025303]
[1725058393541,0.394339,59287.0,59286.0,0.08459403]
[1725058393751,0.385339,59287.0,59286.0,0.08459403]
[1725058394246,0.385339,59287.0,59286.0,0.11259403]
[1725058394635,0.385339,59287.0,59286.0,0.02825303]
[1725058394831,0.385339,59287.0,59286.0,0.01425303]
[1725058395030,0.385339,59287.0,59286.0,0.02825303]
[1725058396445,0.295339,59287.0,59286.0,0.02825303]
[1725058397440,0.32612619,59287.0,59286.0,0.02825303]
[1725058402434,0.32612619,59287.0,59286.0,0.11259403]
[1725058407043,0.41612619,59287.0,59286.0,0.02825303]
[1725058411050,0.50046519,59287.0,59286.0,0.02825303]
[1725058419558,0.86126519,59287.0,59286.0,0.02825303]
[1725058420559,0.98730519,59287.0,59286.0,0.02725303]
[1725058420751,0.98830519,59287.0,59286.0,0.02725303]
[1725058422059,0.98830519,59287.0,59286.0,0.02625303]
[1725058425266,0.62750519,59287.0,59286.0,0.02625303]
[1725058425559,0.98830519,59287.0,59286.0,0.02625303]
[1725058425966,0.62750519,59287.0,59286.0,0.02625303]
[1725058426267,0.93858782,59287.0,59286.0,0.02625303]
[1725058426465,0.57778782,59287.0,59286.0,0.02625303]
[1725058426659,0.93858782,59287.0,59286.0,0.02625303]
[1725058427256,0.084359,59274.0,59269.0,0.3608]
[1725058427463,0.09,59272.0,59269.0,0.3608]
[1725058427663,0.12,59272.0,59271.0,0.084362]
[1725058427962,0.12,59272.0,59266.0,0.084368]
[1725058427963,1.73696,59272.0,59253.0,0.00136]
[1725058428172,1.73696,59272.0,59242.0,0.3608]
[1725058428173,0.09,59254.0,59251.0,0.00025303]
[1725058428467,0.09,59252.0,59251.0,0.00025303]
[1725058428668,0.33,59252.0,59251.0,0.00025303]
[1725058428961,0.328,59252.0,59251.0,0.00025303]
[1725058429162,0.314,59252.0,59251.0,0.00025303]
[1725058429967,0.314,59252.0,59251.0,0.00225303]
[1725058430360,0.4,59252.0,59251.0,0.00225303]
[1725058430561,0.4,59252.0,59251.0,0.00025303]
[1725058430761,0.411,59252.0,59251.0,0.00025303]
[1725058431765,0.424,59252.0,59251.0,0.00025303]
[1725058432165,0.423,59252.0,59251.0,0.00025303]
[1725058433270,0.507389,59252.0,59251.0,0.00025303]
[1725058434867,0.263,59252.0,59251.0,0.86737303]
[1725058435179,0.023,59252.0,59251.0,1.71176303]
[1725058435557,0.023,59252.0,59251.0,1.74171028]
[1725058436157,0.013,59252.0,59251.0,1.74171028]
[1725058436359,0.013,59252.0,59251.0,1.55176303]
[1725058437269,0.084385,59256.0,59251.0,1.55176303]
[1725058437566,0.002,59252.0,59251.0,0.95176303]
[1725058437774,0.002,59252.0,59251.0,0.80624303]
[1725058437973,0.084385,59256.0,59251.0,1.91256303]
[1725058438163,0.144385,59256.0,59252.0,0.084389]
[1725058438365,0.144385,59256.0,59255.0,0.3608]
[1725058438560,0.144385,59256.0,59255.0,0.86708]
[1725058439371,0.144385,59256.0,59255.0,0.50628]
[1725058439568,0.146385,59256.0,59255.0,0.86708]
[1725058440070,0.002,59256.0,59255.0,1.551465]
[1725058440571,0.16,59274.0,59262.0,0.084375]
[1725058440572,0.084367,59268.0,59262.0,0.084375]
[1725058440780,0.084367,59268.0,59262.0,0.605175]
[1725058440962,0.084367,59268.0,59262.0,1.711415]
[1725058441772,0.00425303,59263.0,59262.0,1.711415]
[1725058442169,0.00525303,59263.0,59262.0,1.711415]
[1725058442467,0.00525303,59263.0,59262.0,1.74139011]
[1725058443073,0.00425303,59263.0,59262.0,1.74439011]
[1725058444371,0.00025303,59263.0,59262.0,1.74439011]
[1725058444971,0.00025303,59263.0,59262.0,1.38559011]
[1725058445169,0.00025303,59263.0,59262.0,2.10719011]
[1725058445373,0.07025303,59263.0,59262.0,2.10719011]
[1725058448082,0.07025303,59263.0,59262.0,1.38559011]
[1725058448284,0.07025303,59263.0,59262.0,2.10719011]
[1725058449375,0.00025303,59263.0,59262.0,2.10719011]
[1725058449685,0.05025303,59263.0,59262.0,2.10719011]
[1725058449976,0.00025303,59263.0,59262.0,2.27594011]
[1725058451373,3e-08,59263.0,59262.0,2.36031511]
[1725058453488,3e-08,59263.0,59262.0,1.63871511]
[1725058453678,3e-08,59263.0,59262.0,2.36031511]
[1725058460090,0.1433,59282.0,59281.0,0.084348]
[1725058460287,0.2533,59282.0,59281.0,0.445148]
[1725058461295,0.124,59282.0,59281.0,0.690496]
[1725058461493,0.124,59282.0,59281.0,0.606148]
[1725058461794,0.138,59282.0,59281.0,0.606148]
[1725058462195,0.138,59282.0,59281.0,0.446148]
[1725058463188,0.124,59282.0,59281.0,0.447148]
[1725058463594,0.124,59282.0,59281.0,0.607148]
[1725058463796,0.11,59282.0,59281.0,0.607148]
[1725058464599,0.11,59282.0,59281.0,0.63816949]
[1725058467204,0.33,59288.0,59281.0,0.63816949]
[1725058467205,0.08587984,59296.0,59281.0,0.85706949]
[1725058467393,0.3608,59340.0,59301.0,0.084319]
[1725058467594,0.0469,59339.0,59337.0,0.084267]
[1725058467805,0.0469,59339.0,59337.0,0.244267]
[1725058468102,0.0469,59339.0,59337.0,0.084267]
[1725058468797,0.0491,59338.0,59335.0,0.3608]
[1725058470091,0.0491,59338.0,59335.0,0.3638]
[1725058470295,0.0491,59338.0,59335.0,0.3678]
[1725058470498,0.16,59336.0,59335.0,0.3648]
[1725058470808,0.79252,59336.0,59335.0,0.006]
[1725058471108,0.79252,59336.0,59335.0,0.005]
[1725058471304,0.89252,59336.0,59335.0,0.005]
[1725058471698,0.7656,59336.0,59335.0,0.005]
[1725058471895,0.89252,59336.0,59335.0,0.005]
[1725058472111,0.26,59336.0,59335.0,0.005]
[1725058472500,0.267,59336.0,59335.0,0.003]
[1725058472896,0.276,59336.0,59335.0,0.001]
[1725058473200,0.276,59336.0,59332.0,0.00025279]
[1725058473504,0.262,59336.0,59332.0,0.00025279]
[1725058473707,0.266,59336.0,59332.0,0.00025279]
[1725058474102,0.267,59336.0,59335.0,0.001]
[1725058474403,0.276,59336.0,59335.0,0.001]
[1725058474708,0.276,59336.0,59332.0,0.00025279]
[1725058475110,0.16,59333.0,59332.0,0.00025279]
[1725058475307,0.21,59333.0,59332.0,0.00025279]
[1725058475503,0.16,59333.0,59332.0,0.00025279]
[1725058475700,0.169,59336.0,59332.0,0.00025279]
[1725058475902,0.279,59336.0,59332.0,0.08452779]
[1725058476105,0.279,59336.0,59333.0,0.084274]
[1725058476509,0.27,59336.0,59334.0,0.084272]
[1725058477208,0.277,59336.0,59334.0,0.084272]
[1725058477406,0.283,59336.0,59334.0,0.084272]
[1725058477621,0.276,59336.0,59335.0,0.084271]
[1725058477819,0.405,59336.0,59335.0,0.084271]
[1725058478503,0.53188,59336.0,59335.0,0.445071]
[1725058478813,0.37188,59336.0,59335.0,0.445071]
[1725058479022,0.245,59336.0,59335.0,0.445071]
[1725058479203,0.236,59336.0,59335.0,0.445071]
[1725058479405,0.247,59336.0,59335.0,0.445071]
[1725058480206,0.247,59336.0,59335.0,0.446071]
[1725058480207,0.248,59336.0,59335.0,0.446071]
[1725058485608,0.248,59336.0,59335.0,0.085271]
[1725058487614,0.408,59336.0,59335.0,0.085271]
[1725058488108,0.49227,59336.0,59335.0,0.085271]
[1725058488510,0.52296512,59336.0,59335.0,0.085271]
[1725058489927,0.084277,59331.0,59330.0,0.27205279]
[1725058490111,0.855077,59331.0,59324.0,0.00152]
[1725058490313,0.855077,59331.0,59318.0,0.3608]
[1725058490314,0.244284,59327.0,59326.0,0.064283]
[1725058490515,0.494284,59327.0,59326.0,0.064283]
[1725058493014,0.494284,59327.0,59326.0,0.066283]
[1725058499622,0.494284,59327.0,59326.0,0.002]
[1725058502227,0.334284,59327.0,59326.0,0.086284]
[1725058504138,0.25,59327.0,59326.0,0.086284]
[1725058504339,0.12,59327.0,59326.0,0.691368]
[1725058507034,0.12,59327.0,59326.0,0.72162389]
[1725058508926,0.12,59327.0,59326.0,0.36082389]
[1725058509138,0.12,59327.0,59326.0,0.72162389]
[1725058510533,0.03637678,59332.0,59331.0,0.084277]
[1725058510731,0.15637678,59332.0,59331.0,0.445077]
[1725058511731,0.084281,59329.0,59328.0,0.084281]
[1725058511936,0.494281,59329.0,59328.0,0.084281]
[1725058512129,0.084285,59325.0,59324.0,0.3608]
[1725058512331,0.484285,59325.0,59324.0,0.3608]
[1725058512535,0.532685,59325.0,59324.0,0.3608]
[1725058512834,0.372685,59325.0,59324.0,0.3608]
[1725058513141,0.372685,59325.0,59324.0,0.445087]
[1725058514541,0.372685,59325.0,59324.0,0.084287]
[1725058515041,0.372685,59325.0,59324.0,0.087287]
[1725058515742,0.372685,59325.0,59324.0,0.091287]
[1725058519638,0.372685,59325.0,59324.0,0.057497]
[1725058520540,0.372685,59325.0,59324.0,0.054497]
[1725058520850,0.372685,59325.0,59324.0,0.057497]
[1725058521141,0.372685,59325.0,59324.0,0.054497]
[1725058521336,0.379685,59325.0,59324.0,0.050497]
[1725058521536,0.379685,59325.0,59324.0,0.054497]
[1725058522247,0.384685,59325.0,59324.0,0.050497]
[1725058523746,0.377685,59325.0,59324.0,0.050497]
[1725058523940,0.384685,59325.0,59324.0,0.050497]
[1725058535448,0.084289,59322.0,59321.0,0.08454279]
[1725058535650,0.324289,59322.0,59321.0,0.08454279]
[1725058537449,0.327289,59322.0,59321.0,0.08454279]
[1725058537851,0.328289,59322.0,59321.0,0.08454279]
[1725058542938,0.244,59322.0,59321.0,0.08454279]
[1725058544251,0.244,59322.0,59321.0,0.44534279]
[1725058547462,0.244,59322.0,59321.0,0.08454279]
[1725058547657,0.244,59322.0,59321.0,0.44534279]
[1725058547959,0.244,59322.0,59321.0,0.08454279]
[1725058548651,0.244,59322.0,59321.0,0.44534279]
[1725058550349,0.334,59322.0,59321.0,0.44534279]
[1725058553962,0.418289,59322.0,59321.0,0.44534279]
[1725058555453,0.418289,59322.0,59321.0,0.36105279]
[1725058555763,0.418289,59322.0,59310.0,0.084306]
[1725058555764,0.084306,59311.0,59310.0,0.084306]
[1725058556064,0.084309,59308.0,59307.0,0.43663]
[1725058556254,0.404309,59308.0,59307.0,0.43511]
[1725058556451,0.404309,59308.0,59307.0,0.3508]
[1725058556650,0.084315,59304.0,59302.0,0.08457079]
[1725058556857,0.09,59303.0,59302.0,0.08457079]
[1725058557052,0.192,59303.0,59302.0,0.08457079]
[1725058557755,0.11,59303.0,59302.0,0.08457079]
[1725058559566,0.445111,59308.0,59307.0,0.084311]
[1725058559567,0.001,59308.0,59307.0,0.084311]
[1725058559755,0.061,59308.0,59307.0,0.174311]
[1725058560360,0.06,59308.0,59307.0,0.084311]
[1725058561065,0.07,59308.0,59307.0,0.084311]
[1725058561570,0.14,59308.0,59307.0,0.084311]
[1725058562056,0.3,59308.0,59307.0,0.084311]
[1725058562453,0.13,59308.0,59307.0,0.084311]
[1725058562655,0.145,59308.0,59307.0,0.084311]
[1725058563358,0.141,59308.0,59307.0,0.084311]
[1725058563569,0.071,59308.0,59307.0,0.084311]
[1725058563770,0.231,59308.0,59307.0,0.084311]
[1725058563970,0.341,59308.0,59307.0,0.084311]
[1725058564867,0.425309,59308.0,59307.0,0.084311]
[1725058565560,0.45500426,59308.0,59307.0,0.084311]
[1725058567663,0.084314,59305.0,59304.0,0.445114]
[1725058567857,0.484314,59305.0,59304.0,0.3608]
[1725058569063,0.485314,59305.0,59304.0,0.3608]
[1725058569365,0.571628,59305.0,59304.0,0.3608]
[1725058569759,0.668528,59305.0,59304.0,0.3608]
[1725058570165,0.168632,59303.0,59302.0,0.00025279]
[1725058570475,0.408632,59303.0,59302.0,0.00025279]
[1725058571074,0.324316,59303.0,59302.0,0.00025279]
[1725058571268,0.484316,59303.0,59302.0,0.00025279]
[1725058572074,0.568632,59303.0,59302.0,0.00125279]
[1725058572773,1.074512,59303.0,59302.0,0.00125279]
[1725058572963,1.074512,59303.0,59268.0,0.3608]
[1725058572964,0.084365,59270.0,59268.0,0.3608]
[1725058573164,0.00836053,59270.0,59269.0,0.084364]
[1725058573367,0.00836053,59270.0,59269.0,0.084365]
[1725058573368,0.01,59270.0,59269.0,0.084365]
[1725058573566,0.3608,59285.0,59269.0,0.084365]
[1725058573567,0.084348,59281.0,59269.0,1.15316]
[1725058573874,0.20460101,59281.0,59275.0,0.084356]
[1725058574174,0.20460101,59281.0,59274.0,0.3608]
[1725058574373,0.12025301,59281.0,59274.0,0.3608]
[1725058574572,0.16025301,59281.0,59274.0,0.3608]
[1725058574871,0.084354,59277.0,59274.0,0.3608]
[1725058575077,0.084355,59276.0,59274.0,0.3608]
[1725058575262,0.204355,59276.0,59274.0,0.3608]
[1725058575666,0.084356,59275.0,59274.0,0.3608]
[1725058575869,0.194356,59275.0,59274.0,0.3608]
[1725058576176,0.194356,59275.0,59273.0,0.3608]
[1725058576983,0.16,59274.0,59273.0,0.3608]
[1725058577275,0.27,59274.0,59273.0,0.3608]
[1725058577872,0.354358,59274.0,59273.0,0.3608]
[1725058579071,0.361358,59274.0,59273.0,0.3608]
[1725058579565,0.366358,59274.0,59273.0,0.3608]
[1725058580783,0.366358,59274.0,59272.0,0.0486]
[1725058580970,0.366358,59274.0,59273.0,0.3608]
[1725058583286,0.446358,59274.0,59273.0,0.3608]
[1725058583768,0.445358,59274.0,59273.0,0.3608]
[1725058585474,0.446358,59274.0,59273.0,0.3608]
[1725058586678,0.446358,59274.0,59273.0,0.445159]
[1725058587472,0.202,59274.0,59273.0,1.551279]
[1725058588077,0.202,59274.0,59273.0,1.58219713]
[1725058592178,0.197,59274.0,59273.0,1.58219713]
[1725058592476,0.201,59274.0,59273.0,1.58219713]
[1725058592683,0.121,59274.0,59273.0,1.66655613]
[1725058593184,0.12,59274.0,59273.0,1.66655613]
[1725058594781,0.12,59274.0,59273.0,1.30575613]
[1725058595388,0.12,59274.0,59273.0,1.66655613]
[1725058595881,0.12,59274.0,59273.0,1.30575613]
[1725058596082,0.12,59274.0,59273.0,1.66655613]
[1725058599287,0.12,59274.0,59273.0,1.75091513]
[1725058600487,0.117,59274.0,59273.0,1.75191513]
[1725058600980,0.067,59274.0,59273.0,1.75191513]
[1725058601179,0.047,59274.0,59273.0,1.75191513]
[1725058601381,0.041,59274.0,59273.0,1.15191513]
[1725058601588,0.042,59274.0,59273.0,1.15491513]
[1725058601788,0.002,59274.0,59273.0,1.75491513]
[1725058602185,0.052,59274.0,59273.0,1.75691513]
[1725058604281,0.052,59274.0,59273.0,1.15691513]
[1725058604991,0.052,59274.0,59273.0,1.16191513]
[1725058605292,0.052,59274.0,59273.0,1.16491513]
[1725058605488,0.051,59274.0,59273.0,1.16391513]
[1725058605691,0.052,59274.0,59273.0,1.16391513]
[1725058606482,0.032,59274.0,59273.0,1.16391513]
[1725058607694,0.002,59274.0,59273.0,1.16391513]
[1725058607889,0.042,59274.0,59273.0,1.16391513]
[1725058608085,0.002,59274.0,59273.0,1.16391513]
[1725058608487,0.042,59274.0,59273.0,1.16391513]
[1725058608684,0.002,59274.0,59273.0,1.16391513]
[1725058608880,0.042,59274.0,59273.0,1.16391513]
[1725058609087,0.042,59274.0,59273.0,1.52471513]
[1725058609395,0.002,59274.0,59273.0,1.01859513]
[1725058609885,0.042,59274.0,59273.0,1.01859513]
[1725058610086,0.042,59274.0,59273.0,1.52471513]
[1725058610294,0.042,59274.0,59273.0,1.01859513]
[1725058610588,0.002,59274.0,59273.0,1.01859513]
[1725058611786,0.042,59274.0,59273.0,1.01859513]
[1725058611986,0.002,59274.0,59273.0,1.10295413]
[1725058613699,0.042,59274.0,59273.0,1.10295413]
[1725058614196,0.042,59274.0,59273.0,0.38135413]
[1725058614493,0.002,59274.0,59273.0,1.10295413]
[1725058615493,0.00025301,59281.0,59280.0,0.253047]
[1725058615698,0.00025301,59281.0,59280.0,0.703847]
[1725058615699,0.12025301,59281.0,59280.0,0.703847]
[1725058617092,0.12025301,59281.0,59280.0,0.619498]
[1725058617402,0.12125301,59281.0,59280.0,0.619498]
[1725058617799,0.12225301,59281.0,59280.0,0.619498]
[1725058618802,0.12225301,59281.0,59280.0,0.258698]
[1725058618997,0.12225301,59281.0,59280.0,0.980298]
[1725058619503,0.12225301,59281.0,59280.0,0.258698]
[1725058619701,0.12225301,59281.0,59280.0,0.980298]
[1725058621305,0.12225301,59281.0,59280.0,0.890298]
[1725058623097,0.12225301,59281.0,59280.0,0.92093808]
[1725058624904,0.0499,59288.0,59287.0,0.084339]
[1725058625103,0.2599,59288.0,59287.0,0.084339]
[1725058625802,0.344238,59288.0,59287.0,0.084339]
[1725058626401,0.850238,59288.0,59287.0,0.084339]
[1725058627202,0.858238,59288.0,59287.0,0.086339]
[1725058627396,0.867238,59288.0,59287.0,0.086339]
[1725058628499,1.467238,59288.0,59287.0,0.086339]
[1725058628801,1.52775295,59288.0,59287.0,0.086339]
[1725058631408,0.92775295,59288.0,59287.0,0.086339]
[1725058631604,0.867238,59288.0,59287.0,0.086339]
[1725058632199,0.2769,59288.0,59287.0,0.086339]
[1725058632509,0.2749,59288.0,59287.0,0.086339]
[1725058634212,0.2729,59288.0,59287.0,0.086339]
[1725058636002,0.1829,59288.0,59287.0,0.170678]
[1725058636809,0.3129,59288.0,59287.0,0.170678]
[1725058637505,0.3069,59288.0,59287.0,0.169678]
[1725058637705,0.3129,59288.0,59287.0,0.170678]
[1725058638314,0.143,59288.0,59287.0,0.345017]
[1725058639117,0.048003,59288.0,59287.0,0.705817]
[1725058639616,0.00025301,59293.0,59292.0,0.252996]
[1725058639811,0.11025301,59293.0,59292.0,0.703796]
[1725058640709,0.12125301,59293.0,59292.0,0.704796]
[1725058641103,0.12125301,59293.0,59292.0,0.705796]
[1725058641104,0.13425301,59293.0,59292.0,0.705796]
[1725058646319,0.02425301,59293.0,59292.0,0.705796]
[1725058646912,0.12425301,59293.0,59292.0,0.705796]
[1725058647523,0.02425301,59293.0,59292.0,0.705796]
[1725058648321,1e-08,59293.0,59292.0,0.705796]
[1725058648621,1e-08,59293.0,59292.0,1.896088]
[1725058656421,1e-08,59293.0,59292.0,1.296088]
[1725058658020,0.05000001,59293.0,59292.0,0.790128]
[1725058659122,1e-08,59293.0,59292.0,0.790128]
[1725058659514,1e-08,59293.0,59292.0,0.429328]
[1725058659712,1e-08,59293.0,59292.0,1.150928]
[1725058660428,0.05000001,59293.0,59292.0,1.150928]
[1725058661113,0.05,59293.0,59292.0,1.149928]
[1725058661318,0.05,59293.0,59292.0,1.162928]
[1725058661729,0.0513,59302.0,59301.0,0.084319]
[1725058661933,0.0513,59302.0,59301.0,0.445119]
[1725058661934,0.2713,59302.0,59301.0,0.445119]
[1725058663234,0.2713,59302.0,59301.0,0.446119]
[1725058664519,0.2713,59302.0,59301.0,0.085319]
[1725058664718,0.2713,59302.0,59301.0,0.446119]
[1725058664924,0.2713,59302.0,59301.0,0.085319]
[1725058665327,0.2713,59302.0,59301.0,0.446119]
[1725058665925,0.2713,59302.0,59301.0,0.4767047]
[1725058667433,0.2713,59302.0,59301.0,0.1159047]
[1725058667627,0.2713,59302.0,59301.0,0.4767047]
[1725058668520,0.2713,59302.0,59301.0,0.4757047]
[1725058668924,0.03049176,59302.0,59301.0,0.4757047]
[1725058669225,0.08049176,59302.0,59301.0,0.4757047]
[1725058669425,0.08049176,59302.0,59301.0,0.4767047]
[1725058670028,0.08049176,59302.0,59301.0,0.1159047]
[1725058670329,0.08049176,59302.0,59301.0,0.4767047]
[1725058671730,0.08049176,59302.0,59301.0,0.4757047]
[1725058671923,0.08049176,59302.0,59301.0,0.4767047]
[1725058672126,0.08049176,59302.0,59301.0,0.1159047]
[1725058672328,0.08049176,59302.0,59301.0,0.4767047]
[1725058673029,0.08049176,59302.0,59301.0,0.1159047]
[1725058673231,0.08049176,59302.0,59301.0,0.4767047]
[1725058673642,0.08049176,59302.0,59301.0,0.1159047]
[1725058673831,0.08049176,59302.0,59301.0,0.4767047]
[1725058675840,0.08049176,59302.0,59301.0,0.4757047]
[1725058676044,0.08049176,59302.0,59301.0,0.1159047]
[1725058676235,0.08049176,59302.0,59301.0,0.4767047]
[1725058677040,0.08049176,59302.0,59301.0,0.1159047]
[1725058677337,0.08049176,59302.0,59301.0,0.4767047]
[1725058678842,0.08049176,59302.0,59301.0,0.5610237]
[1725058679038,0.05,59302.0,59301.0,0.6453427]
[1725058679542,0.04249417,59302.0,59301.0,0.7353427]
[1725058682335,0.03850962,59308.0,59307.0,0.168622]
[1725058682542,0.11,59308.0,59307.0,0.619422]
[1725058683552,0.112,59308.0,59307.0,0.619422]
[1725058684944,0.112,59308.0,59307.0,0.529422]
[1725058685150,0.112,59308.0,59307.0,0.445111]
[1725058685350,0.11,59308.0,59307.0,0.450111]
[1725058685551,0.11,59308.0,59307.0,0.454111]
[1725058686049,0.11,59308.0,59307.0,0.449111]
[1725058686353,0.11,59308.0,59307.0,0.450111]
[1725058686869,0.11,59308.0,59307.0,0.446111]
[1725058687049,0.11,59308.0,59307.0,0.447111]
[1725058687854,0.112,59308.0,59307.0,0.445111]
[1725058691738,0.112,59308.0,59307.0,0.084311]
[1725058702768,0.196309,59308.0,59307.0,0.084311]
[1725058704654,0.09,59308.0,59307.0,0.084311]
[1725058704854,0.11,59308.0,59307.0,0.084311]
[1725058705462,0.14033407,59308.0,59307.0,0.084311]
[1725058705962,0.22464307,59308.0,59307.0,0.084311]
[1725058708368,0.194309,59308.0,59307.0,0.084311]
[1725058711963,0.23,59308.0,59292.0,0.413]
[1725058712164,0.08432,59301.0,59292.0,0.445132]
[1725058712364,0.29432,59301.0,59300.0,0.084321]
[1725058712557,0.11,59301.0,59300.0,0.084321]